fUSD/lending_fUSD_20250211
["ID","MTS","AMOUNT","RATE_DAILY","PERIOD"]
[352707818,1739265053005,-501.70268993,0.00010958,2]
[352707819,1739265053015,-500.0,0.00010958,2]
[352707820,1739265053024,-1074.7,0.00010958,2]
[352707821,1739265053033,-500.0,0.00010958,2]
[352707822,1739265053042,-500.0,0.00010958,2]
[352707823,1739265053052,-500.0,0.00010958,2]
[352707824,1739265053061,-500.0,0.00010958,2]
[352707825,1739265053071,-500.0,0.00010958,2]
[352707826,1739265053080,-500.0,0.00010958,2]
[352707827,1739265053089,-500.0,0.00010958,2]
[352707828,1739265053098,-500.0,0.00010958,2]
[352707829,1739265053108,-500.0,0.00010958,2]
[352707830,1739265053117,-510.7887144,0.00010958,2]
[352707831,1739265053126,-500.0,0.00010958,2]
[352707832,1739265053136,-500.0,0.00010958,2]
[352707833,1739265053145,-500.0,0.00010958,2]
[352707834,1739265053154,-500.0,0.00010958,2]
[352707835,1739265053164,-500.0,0.00010958,2]
[352707836,1739265053173,-500.0,0.00010958,2]
[352707837,1739265053182,-500.0,0.00010958,2]
[352707838,1739265053191,-500.0,0.00010958,2]
[352707839,1739265053200,-500.0,0.00010958,2]
[352707840,1739265053210,-500.0,0.00010958,2]
[352707841,1739265053219,-516.47719436,0.00010958,2]
[352707842,1739265053228,-500.0,0.00010958,2]
[352707843,1739265053237,-500.0,0.00010958,2]
[352707844,1739265053247,-500.0,0.00010958,2]
[352707845,1739265053256,-503.24398868,0.00010958,2]
[352707846,1739265053265,-500.0,0.00010958,2]
[352707847,1739265053274,-500.0,0.00010958,2]
[352707848,1739265053284,-500.0,0.00010958,2]
[352707849,1739265053293,-500.0,0.00010958,2]
[352707850,1739265053302,-500.0,0.00010958,2]
[352707851,1739265053312,-500.0,0.00010958,2]
[352707852,1739265053322,-500.0,0.00010958,2]
[352707853,1739265053331,-500.0,0.00010958,2]
[352707854,1739265053340,-500.0,0.00010958,2]
[352707855,1739265053349,-2383.23,0.00010958,2]
[352707856,1739265053359,-500.0,0.00010958,2]
[352707857,1739265053368,-500.0,0.00010958,2]
[352707858,1739265053377,-500.0,0.00010958,2]
[352707859,1739265053387,-500.0,0.00010958,2]
[352707860,1739265053396,-500.0,0.00010958,2]
[352707861,1739265053405,-1057.76,0.00010958,2]
[352707862,1739265053414,-501.61343424,0.00010958,2]
[352707863,1739265053423,-500.0,0.00010958,2]
[352707864,1739265053432,-2708.83,0.00010958,2]
[352707865,1739265053441,-500.0,0.00010958,2]
[352707866,1739265053450,-500.0,0.00010958,2]
[352707867,1739265053459,-500.0,0.00010958,2]
[352707868,1739265053469,-500.0,0.00010958,2]
[352707869,1739265053478,-500.0,0.00010958,2]
[352707870,1739265053487,-543.04848802,0.00010958,2]
[352707871,1739265053497,-2885.3,0.00010958,2]
[352707872,1739265053506,-500.0,0.00010958,2]
[352707873,1739265053515,-500.0,0.00010958,2]
[352707874,1739265053525,-500.0,0.00010958,2]
[352707875,1739265053534,-1593.34,0.00010958,2]
[352707876,1739265053544,-500.0,0.00010958,2]
[352707877,1739265053553,-500.0,0.00010958,2]
[352707878,1739265053563,-500.0,0.00010958,2]
[352707879,1739265053574,-500.0,0.00010958,2]
[352707880,1739265053583,-1305.97,0.00010958,2]
[352707881,1739265053593,-150.0,0.00010958,2]
[352707882,1739265053603,-500.0,0.00010958,2]
[352707883,1739265053616,-500.0,0.00010958,2]
[352707884,1739265053626,-500.0,0.00010958,2]
[352707885,1739265053636,-500.66465497,0.00010958,2]
[352707886,1739265053645,-1000.0,0.00010958,2]
[352707887,1739265053658,-500.0,0.00010958,2]
[352707888,1739265053667,-502.39967692,0.00010958,2]
[352707889,1739265053677,-500.0,0.00010958,2]
[352707890,1739265053687,-500.0,0.00010958,2]
[352707891,1739265053697,-500.0,0.00010958,2]
[352707892,1739265053707,-500.0,0.00010958,2]
[352707893,1739265053717,-500.0,0.00010958,2]
[352707894,1739265053727,-1423.62,0.00010958,2]
[352707895,1739265053736,-505.62852134,0.00010958,2]
[352707896,1739265053746,-500.0,0.00010958,2]
[352707897,1739265053757,-500.0,0.00010958,2]
[352707898,1739265053767,-500.0,0.00010958,2]
[352707899,1739265053777,-500.0,0.00010958,2]
[352707900,1739265053786,-500.0,0.00010958,2]
[352707901,1739265053796,-1289.07,0.00010958,2]
[352707902,1739265053806,-513.91239912,0.00010958,2]
[352707903,1739265053815,-353.12578562,0.00010958,2]
[352707904,1739265053825,-500.0,0.00010958,2]
[352707905,1739265053835,-500.0,0.00010958,2]
[352707906,1739265053845,-1366.32,0.00010958,2]
[352707907,1739265053855,-500.0,0.00010958,2]
[352707908,1739265053865,-500.0,0.00010958,2]
[352707909,1739265053876,-500.0,0.00010958,2]
[352707910,1739265053886,-500.0,0.00010958,2]
[352707911,1739265053897,-500.0,0.00010958,2]
[352707912,1739265053907,-500.0,0.00010958,2]
[352707913,1739265053917,-500.0,0.00010958,2]
[352707914,1739265053927,-428.03548667,0.00010958,2]
[352707915,1739265053941,-908.81,0.00010958,2]
[352707916,1739265053952,-500.0,0.00010958,2]
[352707917,1739265053963,-500.0,0.00010958,2]
[352707918,1739265053974,-1048.25,0.00010958,2]
[352707919,1739265053984,-500.0,0.00010958,2]
[352707920,1739265053994,-1677.27,0.00010958,2]
[352707921,1739265054004,-1301.72,0.00010958,2]
[352707922,1739265054014,-500.0,0.00010958,2]
[352707923,1739265054025,-1042.19,0.00010958,2]
[352707924,1739265054036,-568.31,0.00010958,2]
[352707925,1739265054047,-1824.38,0.00010958,2]
[352707926,1739265054057,-500.0,0.00010958,2]
[352707927,1739265054068,-500.0,0.00010958,2]
[352707928,1739265054078,-500.0,0.00010958,2]
[352707929,1739265054088,-500.0,0.00010958,2]
[352707930,1739265054099,-500.0,0.00010958,2]
[352707931,1739265054108,-1024.73,0.00010958,2]
[352707932,1739265054119,-500.0,0.00010958,2]
[352707933,1739265054130,-1072.01,0.00010958,2]
[352707934,1739265054140,-592.27,0.00010958,2]
[352707935,1739265054150,-500.0,0.00010958,2]
[352707936,1739265054160,-1848.49,0.00010958,2]
[352707937,1739265054170,-500.0,0.00010958,2]
[352707938,1739265054180,-500.0,0.00010958,2]
[352707939,1739265054190,-504.42770675,0.00010958,2]
[352707940,1739265054200,-226.78603687,0.00010958,2]
[352707941,1739265054210,-795.28,0.00010958,2]
[352707942,1739265054220,-500.0,0.00010958,2]
[352707943,1739265054230,-500.0,0.00010958,2]
[352707944,1739265054241,-2201.24,0.00010958,2]
[352707945,1739265054251,-504.54,0.00010958,2]
[352707946,1739265054262,-500.0,0.00010958,2]
[352707947,1739265054272,-500.0,0.00010958,2]
[352707948,1739265054283,-500.0,0.00010958,2]
[352707949,1739265054293,-500.0,0.00010958,2]
[352707950,1739265054303,-500.0,0.00010958,2]
[352707951,1739265054314,-500.0,0.00010958,2]
[352707952,1739265054324,-1051.62,0.00010958,2]
[352707953,1739265054334,-500.0,0.00010958,2]
[352707954,1739265054344,-1764.2,0.00010958,2]
[352707955,1739265054354,-1865.02,0.00010958,2]
[352707956,1739265054364,-2821.01,0.00010958,2]
[352707957,1739265054375,-503.04289279,0.00010958,2]
[352707958,1739265054385,-1331.93,0.00010958,2]
[352707959,1739265054395,-501.48247757,0.00010958,2]
[352707960,1739265054406,-501.14373386,0.00010958,2]
[352707961,1739265054416,-500.0,0.00010958,2]
[352707962,1739265054427,-500.0,0.00010958,2]
[352707963,1739265054436,-500.0,0.00010958,2]
[352707964,1739265054446,-273.86271838,0.00010958,2]
[352707965,1739265054456,-500.0,0.00010958,2]
[352707966,1739265054466,-1165.97,0.00010958,2]
[352707967,1739265054477,-501.38612893,0.00010958,2]
[352707968,1739265054486,-500.0,0.00010958,2]
[352707969,1739265054497,-500.0,0.00010958,2]
[352707970,1739265054507,-500.69305634,0.00010958,2]
[352707971,1739265054517,-500.0,0.00010958,2]
[352707972,1739265054528,-627.5284558,0.00010958,2]
[352707973,1739265054538,-500.0,0.00010958,2]
[352707974,1739265054547,-500.0,0.00010958,2]
[352707975,1739265054558,-500.0,0.00010958,2]
[352707976,1739265054568,-500.0,0.00010958,2]
[352707977,1739265054578,-1873.28,0.00010958,2]
[352707978,1739265054588,-506.25984736,0.00010958,2]
[352707979,1739265054598,-500.0,0.00010958,2]
[352707980,1739265054608,-500.0,0.00010958,2]
[352707981,1739265054622,-761.72,0.00010958,2]
[352707982,1739265054633,-500.0,0.00010958,2]
[352707983,1739265054643,-500.0,0.00010958,2]
[352707984,1739265054654,-500.0,0.00010958,2]
[352707985,1739265054664,-500.0,0.00010958,2]
[352707986,1739265054675,-516.31,0.00010958,2]
[352707987,1739265054685,-500.0,0.00010958,2]
[352707988,1739265054697,-500.0,0.00010958,2]
[352707989,1739265054708,-500.0,0.00010958,2]
[352707990,1739265054718,-500.0,0.00010958,2]
[352707991,1739265054728,-500.0,0.00010958,2]
[352707992,1739265054738,-643.53,0.00010958,2]
[352707993,1739265054748,-500.0,0.00010958,2]
[352707994,1739265054758,-500.0,0.00010958,2]
[352707995,1739265054768,-504.74650064,0.00010958,2]
[352707996,1739265054779,-1705.74,0.00010958,2]
[352707997,1739265054788,-2215.99,0.00010958,2]
[352707998,1739265054799,-500.0,0.00010958,2]
[352707999,1739265054809,-500.0,0.00010958,2]
[352708000,1739265054819,-500.0,0.00010958,2]
[352708001,1739265054830,-500.0,0.00010958,2]
[352708002,1739265054840,-509.77443942,0.00010958,2]
[352708003,1739265054850,-1713.38,0.00010958,2]
[352708004,1739265054860,-500.0,0.00010958,2]
[352708005,1739265054870,-500.0,0.00010958,2]
[352708006,1739265054879,-500.0,0.00010958,2]
[352708007,1739265054889,-1499.43,0.00010958,2]
[352708008,1739265054900,-500.0,0.00010958,2]
[352708009,1739265054910,-500.0,0.00010958,2]
[352708010,1739265054920,-651.19,0.00010958,2]
[352708011,1739265054930,-248.17103882,0.00010958,2]
[352708012,1739265054940,-1920.94,0.00010958,2]
[352708013,1739265054950,-3915.55,0.00010958,2]
[352708014,1739265054960,-738.98,0.00010958,2]
[352708015,1739265054971,-502.22391837,0.00010958,2]
[352708016,1739265054981,-1517.51,0.00010958,2]
[352708017,1739265054991,-500.0,0.00010958,2]
[352708018,1739265055000,-500.0,0.00010958,2]
[352708019,1739265055010,-500.0,0.00010958,2]
[352708020,1739265055020,-735.3,0.00010958,2]
[352708021,1739265055030,-500.0,0.00010958,2]
[352708022,1739265055039,-500.0,0.00010958,2]
[352708023,1739265055049,-512.41586463,0.00010958,2]
[352708024,1739265055059,-500.0,0.00010958,2]
[352708025,1739265055068,-1235.18,0.00010958,2]
[352708026,1739265055078,-2008.94,0.00010958,2]
[352708027,1739265055088,-1587.8,0.00010958,2]
[352708028,1739265055098,-500.0,0.00010958,2]
[352708029,1739265055108,-500.0,0.00010958,2]
[352708030,1739265055117,-500.0,0.00010958,2]
[352708031,1739265055127,-1988.54,0.00010958,2]
[352708032,1739265055136,-500.0,0.00010958,2]
[352708033,1739265055146,-500.0,0.00010958,2]
[352708034,1739265055156,-1228.3,0.00010958,2]
[352708035,1739265055165,-500.0,0.00010958,2]
[352708036,1739265055175,-1981.92,0.00010958,2]
[352708037,1739265055185,-502.81443328,0.00010958,2]
[352708038,1739265055195,-500.0,0.00010958,2]
[352708039,1739265055205,-500.0,0.00010958,2]
[352708040,1739265055215,-2059.35,0.00010958,2]
[352708041,1739265055225,-3255.96,0.00010958,2]
[352708042,1739265055235,-500.0,0.00010958,2]
[352708043,1739265055245,-500.0,0.00010958,2]
[352708044,1739265055255,-500.0,0.00010958,2]
[352708045,1739265055265,-500.0,0.00010958,2]
[352708046,1739265055275,-1558.33,0.00010958,2]
[352708047,1739265055285,-500.0,0.00010958,2]
[352708048,1739265055295,-497.165442,0.00010958,2]
[352708049,1739265055305,-1148.78,0.00010958,2]
[352708050,1739265055315,-500.0,0.00010958,2]
[352708051,1739265055324,-940.62,0.00010958,2]
[352708052,1739265055334,-500.0,0.00010958,2]
[352708053,1739265055344,-1679.56,0.00010958,2]
[352708054,1739265055353,-6426.56,0.00010958,2]
[352708055,1739265055363,-500.0,0.00010958,2]
[352708056,1739265055373,-500.0,0.00010958,2]
[352708057,1739265055383,-500.0,0.00010958,2]
[352708058,1739265055393,-1494.1,0.00010958,2]
[352708059,1739265055402,-500.0,0.00010958,2]
[352708060,1739265055412,-507.5185619,0.00010958,2]
[352708061,1739265055422,-500.0,0.00010958,2]
[352708062,1739265055431,-500.0,0.00010958,2]
[352708063,1739265055441,-500.0,0.00010958,2]
[352708064,1739265055450,-1627.65,0.00010958,2]
[352708065,1739265055460,-500.0,0.00010958,2]
[352708066,1739265055470,-1626.22,0.00010958,2]
[352708067,1739265055479,-500.0,0.00010958,2]
[352708068,1739265055489,-756.57,0.00010958,2]
[352708069,1739265055499,-500.0,0.00010958,2]
[352708070,1739265055508,-500.0,0.00010958,2]
[352708071,1739265055519,-1260.13,0.00010958,2]
[352708072,1739265055528,-1075.85,0.00010958,2]
[352708073,1739265055538,-2624.62,0.00010958,2]
[352708074,1739265055547,-500.0,0.00010958,2]
[352708075,1739265055557,-500.0,0.00010958,2]
[352708076,1739265055566,-1686.44,0.00010958,2]
[352708077,1739265055575,-2881.81,0.00010958,2]
[352708078,1739265055585,-1323.99,0.00010958,2]
[352708079,1739265055594,-500.0,0.00010958,2]
[352708080,1739265055603,-500.0,0.00010958,2]
[352708081,1739265055616,-502.82732808,0.00010958,2]
[352708082,1739265055626,-500.0,0.00010958,2]
[352708083,1739265055636,-162.108891,0.00010958,2]
[352708084,1739265055647,-500.0,0.00010958,2]
[352708085,1739265055657,-502.48499683,0.00010958,2]
[352708086,1739265055666,-500.0,0.00010958,2]
[352708087,1739265055676,-500.0,0.00010958,2]
[352708088,1739265055685,-500.0,0.00010958,2]
[352708089,1739265055697,-500.0,0.00010958,2]
[352708090,1739265055707,-1932.8,0.00010958,2]
[352708091,1739265055717,-500.0,0.00010958,2]
[352708092,1739265055727,-2133.95,0.00010958,2]
[352708093,1739265055738,-500.0,0.00010958,2]
[352708094,1739265055748,-1972.53,0.00010958,2]
[352708095,1739265055757,-500.0,0.00010958,2]
[352708096,1739265055767,-500.0,0.00010958,2]
[352708097,1739265055778,-2203.38,0.00010958,2]
[352708098,1739265055787,-1139.0,0.00010958,2]
[352708099,1739265055797,-554.03,0.00010958,2]
[352708100,1739265055807,-500.0,0.00010958,2]
[352708101,1739265055817,-500.0,0.00010958,2]
[352708102,1739265055994,-834.72,0.00010958,2]
[352708103,1739265056026,-500.0,0.00010958,2]
[352708104,1739265056036,-2820.19,0.00010958,2]
[352708105,1739265056046,-500.0,0.00010958,2]
[352708106,1739265056055,-1007.46,0.00010958,2]
[352708107,1739265056065,-500.0,0.00010958,2]
[352708108,1739265056074,-500.0,0.00010958,2]
[352708109,1739265056084,-500.0,0.00010958,2]
[352708110,1739265056094,-2013.6,0.00010958,2]
[352708111,1739265056103,-4537.7,0.00010958,2]
[352708112,1739265056114,-2126.15,0.00010958,2]
[352708113,1739265056124,-500.0,0.00010958,2]
[352708114,1739265056134,-500.0,0.00010958,2]
[352708115,1739265056144,-1702.86,0.00010958,2]
[352708116,1739265056155,-500.0,0.00010958,2]
[352708117,1739265056165,-1024.54,0.00010958,2]
[352708118,1739265056175,-500.0,0.00010958,2]
[352708119,1739265056185,-500.0,0.00010958,2]
[352708120,1739265056194,-500.0,0.00010958,2]
[352708121,1739265056203,-500.0,0.00010958,2]
[352708122,1739265056213,-504.47355783,0.00010958,2]
[352708123,1739265056222,-500.0,0.00010958,2]
[352708124,1739265056231,-385.54312696,0.00010958,2]
[352708125,1739265056241,-500.0,0.00010958,2]
[352708126,1739265056250,-1561.16,0.00010958,2]
[352708127,1739265056259,-2837.05,0.00010958,2]
[352708128,1739265056269,-500.0,0.00010958,2]
[352708129,1739265056278,-504.4877135,0.00010958,2]
[352708130,1739265056287,-500.0,0.00010958,2]
[352708131,1739265056297,-500.0,0.00010958,2]
[352708132,1739265056306,-501.91076409,0.00010958,2]
[352708133,1739265056315,-500.0,0.00010958,2]
[352708134,1739265056324,-500.0,0.00010958,2]
[352708135,1739265056334,-640.50693526,0.00010958,2]
[352708136,1739265056343,-500.0,0.00010958,2]
[352708137,1739265056353,-1212.54,0.00010958,2]
[352708138,1739265056362,-1813.9,0.00010958,2]
[352708139,1739265056372,-500.0,0.00010958,2]
[352708140,1739265056381,-500.0,0.00010958,2]
[352708141,1739265056391,-500.0,0.00010958,2]
[352708142,1739265056400,-697.64,0.00010958,2]
[352708143,1739265056409,-1027.9,0.00010958,2]
[352708144,1739265056418,-2200.98,0.00010958,2]
[352708145,1739265056428,-500.0,0.00010958,2]
[352708146,1739265056437,-251.91712,0.00010958,2]
[352708147,1739265056447,-480.04751874,0.00010958,2]
[352708148,1739265056456,-2820.74,0.00010958,2]
[352708149,1739265056465,-1843.2,0.00010958,2]
[352708150,1739265056475,-500.0,0.00010958,2]
[352708151,1739265056484,-1582.34,0.00010958,2]
[352708152,1739265056493,-500.0,0.00010958,2]
[352708153,1739265056502,-1185.92,0.00010958,2]
[352708154,1739265056512,-1598.64,0.00010958,2]
[352708155,1739265056521,-526.68296523,0.00010958,2]
[352708156,1739265056531,-500.0,0.00010958,2]
[352708157,1739265056541,-500.0,0.00010958,2]
[352708158,1739265056550,-1417.52,0.00010958,2]
[352708159,1739265056561,-500.0,0.00010958,2]
[352708160,1739265056571,-500.0,0.00010958,2]
[352708161,1739265056581,-500.0,0.00010958,2]
[352708162,1739265056590,-500.0,0.00010958,2]
[352708163,1739265056599,-2917.75,0.00010958,2]
[352708164,1739265056610,-1270.83,0.00010958,2]
[352708165,1739265056622,-500.0,0.00010958,2]
[352708166,1739265056632,-500.0,0.00010958,2]
[352708167,1739265056641,-500.0,0.00010958,2]
[352708168,1739265056651,-196.939913,0.00010958,2]
[352708169,1739265056662,-500.0,0.00010958,2]
[352708170,1739265056671,-500.0,0.00010958,2]
[352708171,1739265056680,-903.1,0.00010958,2]
[352708172,1739265056692,-500.0,0.00010958,2]
[352708173,1739265056703,-1878.45,0.00010958,2]
[352708174,1739265056712,-642.76748259,0.00010958,2]
[352708175,1739265056722,-500.0,0.00010958,2]
[352708176,1739265056732,-500.0,0.00010958,2]
[352708177,1739265056742,-500.0,0.00010958,2]
[352708178,1739265056751,-500.0,0.00010958,2]
[352708179,1739265056761,-589.47,0.00010958,2]
[352708180,1739265056771,-500.0,0.00010958,2]
[352708181,1739265056781,-3571.6,0.00010958,2]
[352708182,1739265056792,-500.0,0.00010958,2]
[352708183,1739265056802,-500.0,0.00010958,2]
[352708184,1739265056812,-2053.42,0.00010958,2]
[352708185,1739265056822,-500.0,0.00010958,2]
[352708186,1739265056831,-500.0,0.00010958,2]
[352708187,1739265056841,-500.0,0.00010958,2]
[352708188,1739265056851,-500.0,0.00010958,2]
[352708189,1739265056861,-1180.71,0.00010958,2]
[352708190,1739265056871,-500.0,0.00010958,2]
[352708191,1739265056881,-1636.89,0.00010958,2]
[352708192,1739265056891,-500.0,0.00010958,2]
[352708193,1739265056902,-500.0,0.00010958,2]
[352708194,1739265056912,-500.0,0.00010958,2]
[352708195,1739265056922,-503.11014549,0.00010958,2]
[352708196,1739265056932,-500.0,0.00010958,2]
[352708197,1739265056942,-1047.62,0.00010958,2]
[352708198,1739265056951,-500.0,0.00010958,2]
[352708199,1739265056962,-500.0,0.00010958,2]
[352708200,1739265056971,-1308.04,0.00010958,2]
[352708201,1739265056981,-823.91,0.00010958,2]
[352708202,1739265056991,-500.0,0.00010958,2]
[352708203,1739265057001,-500.0,0.00010958,2]
[352708204,1739265057011,-2008.77,0.00010958,2]
[352708205,1739265057021,-1936.74,0.00010958,2]
[352708206,1739265057030,-500.0,0.00010958,2]
[352708207,1739265057040,-500.0,0.00010958,2]
[352708208,1739265057050,-500.0,0.00010958,2]
[352708209,1739265057060,-500.0,0.00010958,2]
[352708210,1739265057070,-500.0,0.00010958,2]
[352708211,1739265057080,-502.57040573,0.00010958,2]
[352708212,1739265057089,-2294.86,0.00010958,2]
[352708213,1739265057099,-963.61,0.00010958,2]
[352708214,1739265057109,-983.23,0.00010958,2]
[352708215,1739265057120,-2000.0,0.00010959,2]
[352708216,1739265057129,-150.0,0.00010961,2]
[352708217,1739265057139,-150.0,0.00010964,2]
[352708218,1739265057148,-150.0,0.00010965,2]
[352708219,1739265057158,-150.0,0.00010973,2]
[352708220,1739265057167,-150.0,0.00010979,2]
[352708221,1739265057177,-150.0,0.0001098,2]
[352708222,1739265057187,-150.0,0.00010981,2]
[352708223,1739265057197,-1000.0,0.00010982,2]
[352708224,1739265057206,-150.0,0.00010982,2]
[352708225,1739265057217,-150.0,0.00010984,2]
[352708226,1739265057226,-2126.86095377,0.00010989,2]
[352708227,1739265057236,-150.0,0.00010989,2]
[352708228,1739265057245,-150.0,0.00010989,2]
[352708229,1739265057255,-150.0,0.0001099,2]
[352708230,1739265057265,-150.0,0.00010991,2]
[352708231,1739265057274,-150.0,0.00010993,2]
[352708232,1739265057283,-150.0,0.00010995,2]
[352708233,1739265057293,-333.5810978,0.00010999,2]
[352708234,1739265057304,-939.4391709,0.00011,2]
[352708235,1739265057313,-60297.76167793,0.00011,2]
[352708236,1739265057322,-400.0,0.00011,3]
[352708237,1739265057333,-367.0,0.00011,2]
[352708238,1739265057342,-747.0,0.00011,2]
[352708239,1739265057352,-868.0,0.00011,2]
[352708240,1739265057362,-383.39,0.00011,2]
[352708241,1739265057372,-383.39,0.00011,2]
[352708242,1739265057381,-383.39,0.00011,2]
[352708243,1739265057391,-383.39,0.00011,2]
[352708244,1739265057400,-383.39,0.00011,2]
[352708245,1739265057410,-383.39,0.00011,2]
[352708246,1739265057420,-383.39,0.00011,2]
[352708247,1739265057429,-383.39,0.00011,2]
[352708248,1739265057439,-383.39,0.00011,2]
[352708249,1739265057448,-383.39,0.00011,2]
[352708250,1739265057457,-383.39,0.00011,2]
[352708251,1739265057467,-383.39,0.00011,2]
[352708252,1739265057476,-383.39,0.00011,2]
[352708253,1739265057486,-383.39,0.00011,2]
[352708254,1739265057496,-383.39,0.00011,2]
[352708255,1739265057506,-383.39,0.00011,2]
[352708256,1739265057516,-150.0,0.00011001,2]
[352708257,1739265057525,-150.0,0.00011002,2]
[352708258,1739265057535,-150.0,0.00011002,2]
[352708259,1739265057544,-150.0,0.00011003,2]
[352708260,1739265057553,-159.81199429,0.00011003,2]
[352708261,1739265057563,-150.0,0.00011006,2]
[352708262,1739265057572,-150.0,0.00011007,2]
[352708263,1739265057582,-150.0,0.00011008,2]
[352708264,1739265057591,-150.0,0.00011008,2]
[352708265,1739265057601,-150.0,0.00011022,2]
[352708266,1739265057611,-150.0,0.00011023,2]
[352708267,1739265057624,-1000.0,0.00011027,2]
[352708268,1739265057634,-150.0,0.00011029,2]
[352708269,1739265057643,-150.0,0.00011031,2]
[352708270,1739265057654,-150.0,0.00011031,2]
[352708271,1739265057663,-1000.0,0.00011032,2]
[352708272,1739265057672,-150.0,0.00011033,2]
[352708273,1739265057682,-150.0,0.00011034,2]
[352708274,1739265057691,-150.0,0.00011035,2]
[352708275,1739265057701,-150.0,0.00011036,2]
[352708276,1739265057711,-150.0,0.00011037,2]
[352708277,1739265057721,-603.2,0.00011038,2]
[352708278,1739265057730,-150.0,0.0001104,2]
[352708279,1739265057740,-150.0,0.00011042,2]
[352708280,1739265057749,-150.0,0.00011043,2]
[352708281,1739265057759,-150.0,0.00011043,2]
[352708282,1739265057769,-150.0,0.00011047,2]
[352708283,1739265057778,-150.0,0.00011052,2]
[352708284,1739265057789,-1000.0,0.00011052,2]
[352708285,1739265057799,-150.0,0.00011054,2]
[352708286,1739265057808,-150.0,0.00011056,2]
[352708287,1739265057818,-150.0,0.00011056,2]
[352708288,1739265057828,-150.0,0.00011056,2]
[352708289,1739265057837,-150.0,0.00011058,2]
[352708290,1739265057847,-150.0,0.00011062,2]
[352708291,1739265057856,-150.0,0.00011063,2]
[352708292,1739265057867,-150.0,0.00011063,2]
[352708293,1739265057876,-150.0,0.00011066,2]
[352708294,1739265057889,-150.0,0.00011066,2]
[352708295,1739265057903,-150.0,0.00011071,2]
[352708296,1739265057915,-150.0,0.00011071,2]
[352708297,1739265057927,-150.0,0.00011072,2]
[352708298,1739265057937,-150.0,0.00011072,2]
[352708299,1739265057946,-150.0,0.00011072,2]
[352708300,1739265057956,-150.0,0.00011074,2]
[352708301,1739265057965,-150.0,0.00011075,2]
[352708302,1739265057975,-150.0,0.00011078,2]
[352708303,1739265057985,-150.0,0.00011081,2]
[352708304,1739265057994,-150.0,0.00011086,2]
[352708305,1739265058004,-1000.0,0.0001109,2]
[352708306,1739265058013,-150.0,0.00011091,2]
[352708307,1739265058023,-1000.0,0.00011093,2]
[352708308,1739265058032,-500.0,0.00011094,2]
[352708309,1739265058042,-500.0,0.00011094,2]
[352708310,1739265058051,-500.0,0.00011094,2]
[352708311,1739265058060,-300.0,0.00011094,2]
[352708312,1739265058070,-500.0,0.00011095,2]
[352708313,1739265058080,-500.0,0.00011095,2]
[352708314,1739265058089,-500.0,0.00011095,2]
[352708315,1739265058099,-500.0,0.00011095,2]
[352708316,1739265058109,-500.0,0.00011095,2]
[352708317,1739265058119,-500.67399269,0.00011095,2]